[Event "Late-Titled-Tuesday-Blitz-September-05-2023"]
[Site "Chess.com"]
[Date "2023.09.05"]
[Round "4"]
[White "Sina_Movahed"]
[Black "korason34"]
[Result "1-0"]
[WhiteElo "2984"]
[BlackElo "2688"]
[TimeControl "180+1"]
[EndTime "14:40:03 PDT"]
[Termination "Sina_Movahed won by checkmate"]

1. Nf3 {[%clk 0:03:00.9]} 1... Nf6 {[%clk 0:02:57.5]} 2. c4 {[%clk 0:03:00.6]}
2... e6 {[%clk 0:02:54.1]} 3. g3 {[%clk 0:03:00.7]} 3... d5 {[%clk 0:02:50.8]}
4. Bg2 {[%clk 0:03:00.9]} 4... dxc4 {[%clk 0:02:50.9]} 5. O-O {[%clk 0:02:57.3]}
5... a6 {[%clk 0:02:45.1]} 6. a4 {[%clk 0:02:55.3]} 6... Be7 {[%clk 0:02:35.5]}
7. Na3 {[%clk 0:02:51]} 7... Bxa3 {[%clk 0:02:21.8]} 8. Rxa3 {[%clk 0:02:51.9]}
8... O-O {[%clk 0:02:19.1]} 9. Qc2 {[%clk 0:02:51.7]} 9... c5 {[%clk 0:02:15.5]}
10. Qxc4 {[%clk 0:02:50.3]} 10... b6 {[%clk 0:01:56]} 11. b4 {[%clk 0:02:43.2]}
11... cxb4 {[%clk 0:01:52.2]} 12. Qxb4 {[%clk 0:02:44.1]} 12... Nc6 {[%clk
0:01:47.6]} 13. Qb1 {[%clk 0:02:42.2]} 13... Bb7 {[%clk 0:01:42.1]} 14. Bb2
{[%clk 0:02:40.6]} 14... Nd5 {[%clk 0:01:38]} 15. Rb3 {[%clk 0:02:33.1]} 15...
Na5 {[%clk 0:01:32.8]} 16. Rd3 {[%clk 0:02:31.8]} 16... Qe8 {[%clk 0:01:31]} 17.
Ba3 {[%clk 0:02:07.6]} 17... Qxa4 {[%clk 0:01:29.4]} 18. Ng5 {[%clk 0:02:00.4]}
18... g6 {[%clk 0:01:15.1]} 19. Bxf8 {[%clk 0:01:56.1]} 19... Rxf8 {[%clk
0:01:14.3]} 20. Ne4 {[%clk 0:01:43.4]} 20... Nc4 {[%clk 0:00:51.4]} 21. Rd4
{[%clk 0:01:41.5]} 21... e5 {[%clk 0:00:41.5]} 22. Rxd5 {[%clk 0:01:39.8]} 22...
Bxd5 {[%clk 0:00:41.2]} 23. Nf6+ {[%clk 0:01:40.7]} 23... Kg7 {[%clk 0:00:39.1]}
24. Nxd5 {[%clk 0:01:41.6]} 24... Nxd2 {[%clk 0:00:39.3]} 25. Qd1 {[%clk
0:01:41.9]} 25... Qd4 {[%clk 0:00:28.4]} 26. e3 {[%clk 0:01:39.2]} 26... Qb2
{[%clk 0:00:22.4]} 27. Qe2 {[%clk 0:01:34.2]} 27... Rc8 {[%clk 0:00:16.3]} 28.
Qxa6 {[%clk 0:01:13.4]} 28... Rc2 {[%clk 0:00:16.1]} 29. Rd1 {[%clk 0:00:54.1]}
29... Nc4 {[%clk 0:00:14.7]} 30. Bf1 {[%clk 0:00:53.5]} 30... Rxf2 {[%clk
0:00:06.7]} 31. Qxc4 {[%clk 0:00:51.7]} 31... Rxh2 {[%clk 0:00:06.8]} 32. Be2
{[%clk 0:00:42.3]} 32... Rxe2 {[%clk 0:00:07.2]} 33. Qe4 {[%clk 0:00:42.5]}
33... Rf2 {[%clk 0:00:02.1]} 34. Rb1 {[%clk 0:00:34.7]} 34... Qe2 {[%clk
0:00:02.2]} 35. Qxe5+ {[%clk 0:00:29.4]} 35... f6 {[%clk 0:00:02.8]} 36. Qe7+
{[%clk 0:00:27.6]} 36... Kh6 {[%clk 0:00:03.2]} 37. Qe4 {[%clk 0:00:24.6]} 37...
f5 {[%clk 0:00:01.6]} 38. Qh4+ {[%clk 0:00:23.9]} 38... Kg7 {[%clk 0:00:02.2]}
39. Qe7+ {[%clk 0:00:23.6]} 39... Kh6 {[%clk 0:00:02.7]} 40. Nf4 {[%clk
0:00:24.1]} 40... Qf3 {[%clk 0:00:02.2]} 41. Qh4+ {[%clk 0:00:23.6]} 41... Kg7
{[%clk 0:00:02.4]} 42. Rc1 {[%clk 0:00:23.6]} 42... h6 {[%clk 0:00:01.6]} 43.
Rc7+ {[%clk 0:00:23.7]} 43... Kf8 {[%clk 0:00:01.4]} 44. Qd8# {[%clk 0:00:24.6]}
1-0

[Event "Late-Titled-Tuesday-Blitz-September-05-2023"]
[Site "Chess.com"]
[Date "2023.09.05"]
[Round "4"]
[White "FabianoCaruana"]
[Black "eljanov"]
[Result "1-0"]
[WhiteElo "3072"]
[BlackElo "2878"]
[TimeControl "180+1"]
[EndTime "14:40:04 PDT"]
[Termination "FabianoCaruana won by resignation"]

1. e4 {[%clk 0:03:00.9]} 1... c6 {[%clk 0:02:58]} 2. d4 {[%clk 0:02:59.4]} 2...
d5 {[%clk 0:02:58.4]} 3. f3 {[%clk 0:03:00.1]} 3... e6 {[%clk 0:02:57.8]} 4. Nc3
{[%clk 0:02:59.5]} 4... Bb4 {[%clk 0:02:56.8]} 5. Be3 {[%clk 0:02:59.7]} 5... b6
{[%clk 0:02:53.6]} 6. Qd2 {[%clk 0:02:58.3]} 6... Nf6 {[%clk 0:02:50.4]} 7. e5
{[%clk 0:02:58]} 7... Nfd7 {[%clk 0:02:50.3]} 8. f4 {[%clk 0:02:57.6]} 8... c5
{[%clk 0:02:42]} 9. Nf3 {[%clk 0:02:56.7]} 9... Ba6 {[%clk 0:02:38.6]} 10. Bxa6
{[%clk 0:02:55.4]} 10... Nxa6 {[%clk 0:02:39.5]} 11. a3 {[%clk 0:02:52.8]} 11...
Ba5 {[%clk 0:02:33.9]} 12. O-O {[%clk 0:02:52]} 12... Rc8 {[%clk 0:02:26.7]} 13.
b4 {[%clk 0:02:40.2]} 13... cxb4 {[%clk 0:02:24.8]} 14. Nb5 {[%clk 0:02:39.3]}
14... O-O {[%clk 0:02:09.9]} 15. Qd3 {[%clk 0:02:33.3]} 15... bxa3 {[%clk
0:01:58.5]} 16. c3 {[%clk 0:02:32.7]} 16... f5 {[%clk 0:01:49.2]} 17. Rxa3
{[%clk 0:02:23.3]} 17... Qe7 {[%clk 0:01:35.5]} 18. Rfa1 {[%clk 0:02:20.7]}
18... Nab8 {[%clk 0:01:30]} 19. Nxa7 {[%clk 0:02:18.3]} 19... Rc4 {[%clk
0:01:24.9]} 20. Nb5 {[%clk 0:02:16.2]} 20... Rfc8 {[%clk 0:01:09]} 21. Bd2
{[%clk 0:02:13.8]} 21... R4c6 {[%clk 0:01:07.3]} 22. Rb3 {[%clk 0:02:09.2]}
22... Nf8 {[%clk 0:01:02.2]} 23. h3 {[%clk 0:02:04.1]} 23... Ng6 {[%clk
0:01:00.1]} 24. Kh2 {[%clk 0:02:01.8]} 24... Rf8 {[%clk 0:01:00]} 25. Rg1 {[%clk
0:02:01.5]} 25... Na6 {[%clk 0:00:58.5]} 26. Bc1 {[%clk 0:02:01]} 26... Qd7
{[%clk 0:00:48.6]} 27. Qe3 {[%clk 0:01:50.3]} 27... Nc7 {[%clk 0:00:47.5]} 28.
Nd6 {[%clk 0:01:47.6]} 28... Ne8 {[%clk 0:00:44.7]} 29. Ba3 {[%clk 0:01:46.5]}
29... Nxd6 {[%clk 0:00:44]} 30. exd6 {[%clk 0:01:47.1]} 30... Rfc8 {[%clk
0:00:44.2]} 31. Rc1 {[%clk 0:01:43.1]} 31... Qe8 {[%clk 0:00:42.8]} 32. Ne5
{[%clk 0:01:42.3]} 32... Nxe5 {[%clk 0:00:43]} 33. fxe5 {[%clk 0:01:34]} 33...
Qd7 {[%clk 0:00:43]} 34. Bb4 {[%clk 0:01:29.7]} 34... Bxb4 {[%clk 0:00:31]} 35.
Rxb4 {[%clk 0:01:30.6]} 35... h6 {[%clk 0:00:31.1]} 36. Rb3 {[%clk 0:01:27.2]}
36... Kh7 {[%clk 0:00:31]} 37. Rcb1 {[%clk 0:01:25.6]} 37... Qf7 {[%clk
0:00:31.4]} 38. Qg3 {[%clk 0:01:22.1]} 38... f4 {[%clk 0:00:27]} 39. Qd3+ {[%clk
0:01:15]} 39... Qg6 {[%clk 0:00:21.6]} 40. Qxg6+ {[%clk 0:01:04.6]} 40... Kxg6
{[%clk 0:00:22.5]} 41. Rxb6 {[%clk 0:01:04.3]} 41... Rxc3 {[%clk 0:00:22.5]} 42.
d7 {[%clk 0:01:01.7]} 42... Rd8 {[%clk 0:00:23]} 43. Rxe6+ {[%clk 0:01:01.9]}
43... Kf7 {[%clk 0:00:22]} 44. Rd6 {[%clk 0:01:01.8]} 44... Rc2 {[%clk 0:00:19]}
45. Rxd5 {[%clk 0:00:56.4]} 45... Ke7 {[%clk 0:00:17.8]} 46. Kg1 {[%clk
0:00:36.1]} 46... Rd2 {[%clk 0:00:16.7]} 47. Rb7 {[%clk 0:00:33.9]} 47... g5
{[%clk 0:00:14.2]} 48. Rd6 {[%clk 0:00:28.3]} 48... h5 {[%clk 0:00:14.7]} 49. d5
{[%clk 0:00:28.6]} 49... g4 {[%clk 0:00:12.4]} 50. hxg4 {[%clk 0:00:29.5]} 50...
hxg4 {[%clk 0:00:13]} 51. Re6+ {[%clk 0:00:29.4]} 51... Kf7 {[%clk 0:00:13.4]}
52. Rf6+ {[%clk 0:00:29.8]} 52... Kg7 {[%clk 0:00:13.7]} 53. Rxf4 {[%clk
0:00:24.4]} 53... g3 {[%clk 0:00:14.1]} 54. Rg4+ {[%clk 0:00:22.6]} 1-0

[Event "Late-Titled-Tuesday-Blitz-September-05-2023"]
[Site "Chess.com"]
[Date "2023.09.05"]
[Round "4"]
[White "GoltsevDmitry2000"]
[Black "colegiodemadrid"]
[Result "0-1"]
[WhiteElo "2652"]
[BlackElo "2496"]
[TimeControl "180+1"]
[EndTime "14:40:06 PDT"]
[Termination "colegiodemadrid won by resignation"]

1. e4 {[%clk 0:03:00.1]} 1... e5 {[%clk 0:03:00.2]} 2. Nf3 {[%clk 0:03:00.5]}
2... Nc6 {[%clk 0:02:56.8]} 3. Bb5 {[%clk 0:03:00.7]} 3... a6 {[%clk 0:02:57.1]}
4. Ba4 {[%clk 0:03:00.4]} 4... Nf6 {[%clk 0:02:57.1]} 5. O-O {[%clk 0:03:00.3]}
5... Be7 {[%clk 0:02:56.8]} 6. Re1 {[%clk 0:03:00.2]} 6... b5 {[%clk 0:02:56.1]}
7. Bb3 {[%clk 0:03:00]} 7... O-O {[%clk 0:02:57]} 8. c3 {[%clk 0:02:59.8]} 8...
d5 {[%clk 0:02:57.4]} 9. d4 {[%clk 0:02:59.7]} 9... dxe4 {[%clk 0:02:47.7]} 10.
Nxe5 {[%clk 0:02:58.3]} 10... Nxe5 {[%clk 0:02:30]} 11. dxe5 {[%clk 0:02:57.6]}
11... Qxd1 {[%clk 0:02:27.4]} 12. Rxd1 {[%clk 0:02:57.7]} 12... Ng4 {[%clk
0:02:15.8]} 13. Bd5 {[%clk 0:02:54.9]} 13... Rb8 {[%clk 0:02:11.7]} 14. Bxe4
{[%clk 0:02:52]} 14... Nxe5 {[%clk 0:02:10.9]} 15. Be3 {[%clk 0:02:46.1]} 15...
Bd6 {[%clk 0:02:05.2]} 16. Ba7 {[%clk 0:02:45.2]} 16... Bg4 {[%clk 0:01:59.9]}
17. f3 {[%clk 0:02:45.4]} 17... Rbd8 {[%clk 0:01:54.9]} 18. fxg4 {[%clk
0:02:31.2]} 18... Bc5+ {[%clk 0:01:53.7]} 19. Bxc5 {[%clk 0:02:31.5]} 19...
Rxd1+ {[%clk 0:01:54.6]} 20. Kf2 {[%clk 0:02:31.2]} 20... Re8 {[%clk 0:01:53.5]}
21. Kg3 {[%clk 0:02:22]} 21... Nd3 {[%clk 0:01:39.5]} 22. Bf3 {[%clk 0:01:34.1]}
22... Rc1 {[%clk 0:01:31]} 23. Bf2 {[%clk 0:00:57.4]} 23... Nxf2 {[%clk
0:01:29.1]} 24. Kxf2 {[%clk 0:00:58.3]} 24... Ree1 {[%clk 0:01:29.2]} 25. a4
{[%clk 0:00:56.6]} 25... Rxb1 {[%clk 0:01:28.4]} 26. Ra2 {[%clk 0:00:55.9]}
26... g6 {[%clk 0:01:12.3]} 27. axb5 {[%clk 0:00:54.7]} 27... axb5 {[%clk
0:01:12.2]} 28. Ra5 {[%clk 0:00:54]} 28... Rec1 {[%clk 0:01:05.6]} 29. Rxb5
{[%clk 0:00:39.6]} 29... Rxc3 {[%clk 0:01:04.8]} 30. Kg3 {[%clk 0:00:34.4]}
30... Rcc1 {[%clk 0:00:58.2]} 31. Kf4 {[%clk 0:00:31.7]} 31... Kg7 {[%clk
0:00:57.4]} 32. h4 {[%clk 0:00:31.5]} 32... Ra1 {[%clk 0:00:56.7]} 33. h5 {[%clk
0:00:28.4]} 33... Ra4+ {[%clk 0:00:56.7]} 34. Kg5 {[%clk 0:00:24.6]} 34... h6+
{[%clk 0:00:54.9]} 35. Kh4 {[%clk 0:00:24.2]} 35... gxh5 {[%clk 0:00:50.9]} 36.
Kg3 {[%clk 0:00:14.7]} 36... hxg4 {[%clk 0:00:47.7]} 37. Bxg4 {[%clk 0:00:15.2]}
37... Rd4 {[%clk 0:00:42.1]} 38. Bf3 {[%clk 0:00:12.9]} 38... Rd6 {[%clk
0:00:41.4]} 39. Rb4 {[%clk 0:00:06]} 39... c5 {[%clk 0:00:39.4]} 40. Rg4+ {[%clk
0:00:05.5]} 40... Rg6 {[%clk 0:00:39]} 41. Be4 {[%clk 0:00:01.7]} 41... Rxg4+
{[%clk 0:00:37.3]} 42. Kxg4 {[%clk 0:00:02.6]} 42... Rc4 {[%clk 0:00:36.3]} 43.
Kf3 {[%clk 0:00:02.5]} 43... Rb4 {[%clk 0:00:36.5]} 44. Kf4 {[%clk 0:00:02.5]}
44... Rxb2 {[%clk 0:00:34.9]} 45. g4 {[%clk 0:00:03.3]} 45... Rb4 {[%clk
0:00:34.9]} 46. Kf5 {[%clk 0:00:02.9]} 46... Rxe4 {[%clk 0:00:35]} 47. Kxe4
{[%clk 0:00:03.8]} 47... Kg6 {[%clk 0:00:35.2]} 48. Kd5 {[%clk 0:00:04.5]} 48...
Kg5 {[%clk 0:00:35.3]} 49. Kxc5 {[%clk 0:00:05.4]} 49... Kxg4 {[%clk 0:00:35.1]}
50. Kd4 {[%clk 0:00:06.3]} 50... f5 {[%clk 0:00:35.2]} 51. Ke3 {[%clk
0:00:07.2]} 51... Kg3 {[%clk 0:00:35.6]} 52. Ke2 {[%clk 0:00:07.6]} 52... Kg2
{[%clk 0:00:35.4]} 53. Ke3 {[%clk 0:00:08]} 53... h5 {[%clk 0:00:36]} 54. Kf4
{[%clk 0:00:08.9]} 54... h4 {[%clk 0:00:36.5]} 55. Kg5 {[%clk 0:00:09.7]} 55...
h3 {[%clk 0:00:37.2]} 0-1

[Event "Late-Titled-Tuesday-Blitz-September-05-2023"]
[Site "Chess.com"]
[Date "2023.09.05"]
[Round "4"]
[White "ArtemDyachuk"]
[Black "Schattman"]
[Result "0-1"]
[WhiteElo "2543"]
[BlackElo "2421"]
[TimeControl "180+1"]
[EndTime "14:40:08 PDT"]
[Termination "Schattman won by checkmate"]

1. d4 {[%clk 0:03:00.9]} 1... Nf6 {[%clk 0:02:59.3]} 2. c4 {[%clk 0:03:00.1]}
2... g6 {[%clk 0:02:59.9]} 3. Nc3 {[%clk 0:03:00.4]} 3... d5 {[%clk 0:03:00.2]}
4. cxd5 {[%clk 0:03:00.6]} 4... Nxd5 {[%clk 0:03:01.1]} 5. e4 {[%clk 0:03:01]}
5... Nxc3 {[%clk 0:03:01.7]} 6. bxc3 {[%clk 0:03:01.9]} 6... Bg7 {[%clk
0:03:02.1]} 7. Bb5+ {[%clk 0:03:02]} 7... c6 {[%clk 0:03:01.1]} 8. Ba4 {[%clk
0:03:02.2]} 8... b5 {[%clk 0:03:01.3]} 9. Bb3 {[%clk 0:02:58.6]} 9... a5 {[%clk
0:03:01.2]} 10. Nf3 {[%clk 0:02:56.1]} 10... a4 {[%clk 0:03:00.8]} 11. Bc2
{[%clk 0:02:56.2]} 11... O-O {[%clk 0:03:01]} 12. Be3 {[%clk 0:02:56]} 12... Qa5
{[%clk 0:02:56.6]} 13. Qd2 {[%clk 0:02:55.2]} 13... c5 {[%clk 0:02:57]} 14. e5
{[%clk 0:01:43.1]} 14... Bb7 {[%clk 0:02:49.9]} 15. d5 {[%clk 0:01:00.4]} 15...
Nd7 {[%clk 0:02:41.1]} 16. Bf4 {[%clk 0:00:51.6]} 16... Bxd5 {[%clk 0:02:30.5]}
17. Qe3 {[%clk 0:00:16.9]} 17... Bxf3 {[%clk 0:02:00.4]} 18. gxf3 {[%clk
0:00:17.8]} 18... Nb6 {[%clk 0:01:57.1]} 19. Be4 {[%clk 0:00:12.9]} 19... Nc4
{[%clk 0:01:48.3]} 20. Qc1 {[%clk 0:00:12.3]} 20... Rad8 {[%clk 0:01:42.9]} 21.
h4 {[%clk 0:00:11.9]} 21... h5 {[%clk 0:01:36.7]} 22. e6 {[%clk 0:00:03.1]}
22... f5 {[%clk 0:01:28.5]} 23. Bc6 {[%clk 0:00:02]} 23... Qxc3+ {[%clk
0:01:25.4]} 24. Ke2 {[%clk 0:00:02]} 24... Qxa1 {[%clk 0:01:19]} 25. Qxa1 {[%clk
0:00:01.6]} 25... Bxa1 {[%clk 0:01:19.9]} 26. Rxa1 {[%clk 0:00:01.8]} 26... Na3
{[%clk 0:01:04.3]} 27. Bg5 {[%clk 0:00:01.6]} 27... Nc2 {[%clk 0:01:02]} 28.
Bxe7 {[%clk 0:00:01.6]} 28... Nd4+ {[%clk 0:00:58.4]} 29. Kf1 {[%clk 0:00:01.6]}
29... Nxc6 {[%clk 0:00:58.4]} 30. Bxd8 {[%clk 0:00:02.1]} 30... Rxd8 {[%clk
0:00:57.9]} 31. Rc1 {[%clk 0:00:02.3]} 31... Rd5 {[%clk 0:00:56]} 32. Re1 {[%clk
0:00:01.7]} 32... Kf8 {[%clk 0:00:55.4]} 33. Kg2 {[%clk 0:00:02.2]} 33... Ke7
{[%clk 0:00:55.7]} 34. Kg3 {[%clk 0:00:03.1]} 34... Rd6 {[%clk 0:00:51.8]} 35.
Kf4 {[%clk 0:00:04]} 35... Rxe6 {[%clk 0:00:51.7]} 36. Rd1 {[%clk 0:00:04]}
36... Rd6 {[%clk 0:00:51.1]} 37. Kg5 {[%clk 0:00:04.7]} 37... Rxd1 {[%clk
0:00:50.7]} 38. f4 {[%clk 0:00:05.6]} 38... Kf7 {[%clk 0:00:47.2]} 39. f3 {[%clk
0:00:06.5]} 39... b4 {[%clk 0:00:42.6]} 40. a3 {[%clk 0:00:07.4]} 40... b3
{[%clk 0:00:42.6]} 41. Kh6 {[%clk 0:00:07.9]} 41... b2 {[%clk 0:00:43]} 42. Kg5
{[%clk 0:00:08.8]} 42... b1=Q {[%clk 0:00:43.4]} 43. Kh6 {[%clk 0:00:09]} 43...
Qb8 {[%clk 0:00:42.5]} 44. Kg5 {[%clk 0:00:08.8]} 44... Rd8 {[%clk 0:00:40.3]}
45. Kh6 {[%clk 0:00:08]} 45... Qd6 {[%clk 0:00:40.2]} 46. Kh7 {[%clk 0:00:07.1]}
46... Rh8+ {[%clk 0:00:36.6]} 47. Kxh8 {[%clk 0:00:06.6]} 47... Qf6+ {[%clk
0:00:36.6]} 48. Kh7 {[%clk 0:00:06.5]} 48... Qg7# {[%clk 0:00:15.7]} 0-1

[Event "Late-Titled-Tuesday-Blitz-September-05-2023"]
[Site "Chess.com"]
[Date "2023.09.05"]
[Round "4"]
[White "KrokerGuy"]
[Black "TC2304"]
[Result "0-1"]
[WhiteElo "2486"]
[BlackElo "2363"]
[TimeControl "180+1"]
[EndTime "14:40:10 PDT"]
[Termination "TC2304 won on time"]

1. e4 {[%clk 0:03:00.9]} 1... e6 {[%clk 0:03:00.5]} 2. d4 {[%clk 0:02:59.2]}
2... d5 {[%clk 0:03:01.1]} 3. Nc3 {[%clk 0:02:59.1]} 3... dxe4 {[%clk
0:03:01.7]} 4. Nxe4 {[%clk 0:02:59.1]} 4... Bd7 {[%clk 0:03:02.5]} 5. Nf3 {[%clk
0:02:56.9]} 5... Bc6 {[%clk 0:03:03.1]} 6. Bd3 {[%clk 0:02:57.6]} 6... Nd7
{[%clk 0:03:03.5]} 7. c3 {[%clk 0:02:55]} 7... Ngf6 {[%clk 0:03:03.4]} 8. Ng3
{[%clk 0:02:48.3]} 8... Be7 {[%clk 0:03:02.7]} 9. O-O {[%clk 0:02:46.7]} 9...
O-O {[%clk 0:03:02.5]} 10. Re1 {[%clk 0:02:46.9]} 10... b6 {[%clk 0:02:57.9]}
11. a4 {[%clk 0:02:46]} 11... a6 {[%clk 0:02:47.6]} 12. Qe2 {[%clk 0:02:33.6]}
12... Bb7 {[%clk 0:02:47.4]} 13. Bf4 {[%clk 0:02:19.4]} 13... c5 {[%clk
0:02:47.4]} 14. dxc5 {[%clk 0:02:16.1]} 14... Nxc5 {[%clk 0:02:45.2]} 15. Bc2
{[%clk 0:02:11.7]} 15... Qc8 {[%clk 0:02:28.9]} 16. Nf5 {[%clk 0:01:57.3]} 16...
exf5 {[%clk 0:02:21.7]} 17. Qxe7 {[%clk 0:01:58.2]} 17... Bxf3 {[%clk
0:02:20.9]} 18. gxf3 {[%clk 0:01:56.6]} 18... Qc6 {[%clk 0:02:13.7]} 19. Kg2
{[%clk 0:01:50.4]} 19... Nd5 {[%clk 0:02:13.2]} 20. Qd6 {[%clk 0:01:46.7]} 20...
Nxf4+ {[%clk 0:02:11.8]} 21. Qxf4 {[%clk 0:01:47.6]} 21... g6 {[%clk 0:02:07.3]}
22. Rad1 {[%clk 0:01:27.2]} 22... Ne6 {[%clk 0:02:05.8]} 23. Qd6 {[%clk
0:01:23.6]} 23... Rac8 {[%clk 0:01:58.8]} 24. Re5 {[%clk 0:00:51.8]} 24... Ng5
{[%clk 0:01:49.8]} 25. Qxc6 {[%clk 0:00:51.7]} 25... Rxc6 {[%clk 0:01:50.7]} 26.
Re7 {[%clk 0:00:44.7]} 26... Re6 {[%clk 0:01:26.4]} 27. Rxe6 {[%clk 0:00:44.8]}
27... Nxe6 {[%clk 0:01:27.3]} 28. Rd6 {[%clk 0:00:44.5]} 28... Rb8 {[%clk
0:01:23.5]} 29. Kg3 {[%clk 0:00:33.2]} 29... Rb7 {[%clk 0:01:20.5]} 30. Bd1
{[%clk 0:00:28]} 30... Kf8 {[%clk 0:01:17.7]} 31. Be2 {[%clk 0:00:28]} 31... a5
{[%clk 0:01:17]} 32. Ba6 {[%clk 0:00:24.8]} 32... Rb8 {[%clk 0:01:15.8]} 33. Bc4
{[%clk 0:00:16.4]} 33... Ke7 {[%clk 0:01:13.8]} 34. Rd5 {[%clk 0:00:06.5]} 34...
Rc8 {[%clk 0:01:04.7]} 35. b3 {[%clk 0:00:05.5]} 35... h6 {[%clk 0:00:48.7]} 36.
f4 {[%clk 0:00:02.5]} 36... Rc7 {[%clk 0:00:39.9]} 37. Re5 {[%clk 0:00:02.7]}
37... Kf6 {[%clk 0:00:39.9]} 38. Bxe6 {[%clk 0:00:03.1]} 38... fxe6 {[%clk
0:00:39.6]} 39. Re3 {[%clk 0:00:02.4]} 39... g5 {[%clk 0:00:39.4]} 40. fxg5+
{[%clk 0:00:01.7]} 40... hxg5 {[%clk 0:00:40.3]} 41. f4 {[%clk 0:00:02]} 41...
gxf4+ {[%clk 0:00:33.9]} 42. Kxf4 {[%clk 0:00:02.9]} 42... Rh7 {[%clk
0:00:34.3]} 43. Kg3 {[%clk 0:00:02.5]} 43... e5 {[%clk 0:00:33.4]} 44. Rd3
{[%clk 0:00:02.7]} 44... f4+ {[%clk 0:00:33]} 45. Kf3 {[%clk 0:00:02.6]} 45...
Kf5 {[%clk 0:00:32.8]} 46. Rd6 {[%clk 0:00:01.2]} 46... Rh3+ {[%clk 0:00:31.2]}
47. Kg2 {[%clk 0:00:01.2]} 47... Rxc3 {[%clk 0:00:31.5]} 48. Rxb6 {[%clk
0:00:01.9]} 48... Ke4 {[%clk 0:00:29]} 49. Rb5 {[%clk 0:00:01.6]} 49... f3+
{[%clk 0:00:29.4]} 50. Kg3 {[%clk 0:00:01.6]} 50... Rc1 {[%clk 0:00:26]} 0-1

[Event "Late-Titled-Tuesday-Blitz-September-05-2023"]
[Site "Chess.com"]
[Date "2023.09.05"]
[Round "4"]
[White "santosalberto1987"]
[Black "hammahamma"]
[Result "1-0"]
[WhiteElo "2536"]
[BlackElo "2270"]
[TimeControl "180+1"]
[EndTime "14:40:10 PDT"]
[Termination "santosalberto1987 won on time"]

1. e4 {[%clk 0:03:00.9]} 1... e5 {[%clk 0:02:58.7]} 2. Nf3 {[%clk 0:03:00.9]}
2... Nc6 {[%clk 0:02:58.9]} 3. Bc4 {[%clk 0:03:00.3]} 3... Bc5 {[%clk
0:02:58.1]} 4. c3 {[%clk 0:03:00.3]} 4... Nf6 {[%clk 0:02:58.1]} 5. d3 {[%clk
0:03:00.5]} 5... O-O {[%clk 0:02:57]} 6. O-O {[%clk 0:03:00.1]} 6... d5 {[%clk
0:02:52.7]} 7. exd5 {[%clk 0:03:01]} 7... Nxd5 {[%clk 0:02:53]} 8. Re1 {[%clk
0:03:01.9]} 8... Bg4 {[%clk 0:02:50.5]} 9. Nbd2 {[%clk 0:03:02.2]} 9... a5
{[%clk 0:02:39.1]} 10. Ne4 {[%clk 0:03:02]} 10... Be7 {[%clk 0:02:39]} 11. Ng3
{[%clk 0:03:00.2]} 11... Nb6 {[%clk 0:02:34.7]} 12. Bb5 {[%clk 0:03:00.1]} 12...
f6 {[%clk 0:02:16]} 13. h3 {[%clk 0:02:58.5]} 13... Bd7 {[%clk 0:02:07.2]} 14.
d4 {[%clk 0:02:57.6]} 14... exd4 {[%clk 0:02:03.1]} 15. cxd4 {[%clk 0:02:46]}
15... Nb4 {[%clk 0:01:56.6]} 16. Bf1 {[%clk 0:02:34]} 16... Kh8 {[%clk
0:01:36.5]} 17. a3 {[%clk 0:02:33.5]} 17... N4d5 {[%clk 0:01:35.9]} 18. Bd3
{[%clk 0:02:34.2]} 18... Bd6 {[%clk 0:01:34.1]} 19. Ne4 {[%clk 0:02:26.1]} 19...
Bc6 {[%clk 0:01:26.9]} 20. Nxd6 {[%clk 0:02:25.6]} 20... Qxd6 {[%clk 0:01:27.8]}
21. Nh4 {[%clk 0:02:22.8]} 21... Nf4 {[%clk 0:01:23.7]} 22. Bxf4 {[%clk
0:02:16.2]} 22... Qxf4 {[%clk 0:01:24.6]} 23. Qh5 {[%clk 0:01:49.8]} 23... Qh6
{[%clk 0:01:22.8]} 24. Qxh6 {[%clk 0:01:47.2]} 24... gxh6 {[%clk 0:01:23.7]} 25.
Be4 {[%clk 0:01:45.6]} 25... Bxe4 {[%clk 0:01:15.5]} 26. Rxe4 {[%clk 0:01:46.5]}
26... Nd5 {[%clk 0:01:15.4]} 27. Nf5 {[%clk 0:01:44.2]} 27... Rad8 {[%clk
0:01:07.8]} 28. Rae1 {[%clk 0:01:40.9]} 28... h5 {[%clk 0:01:01.7]} 29. h4
{[%clk 0:01:37.5]} 29... Kg8 {[%clk 0:00:58.3]} 30. Ng3 {[%clk 0:01:33.3]} 30...
Kf7 {[%clk 0:00:54.1]} 31. Nxh5 {[%clk 0:01:32.6]} 31... Rfe8 {[%clk 0:00:50.1]}
32. Rxe8 {[%clk 0:01:30.8]} 32... Rxe8 {[%clk 0:00:51]} 33. Rxe8 {[%clk
0:01:31]} 33... Kxe8 {[%clk 0:00:51.3]} 34. Kf1 {[%clk 0:01:30.3]} 34... Ke7
{[%clk 0:00:43.8]} 35. Ke2 {[%clk 0:01:30.1]} 35... Ke6 {[%clk 0:00:42.7]} 36.
g4 {[%clk 0:01:24.5]} 36... Nb6 {[%clk 0:00:24.7]} 37. Nf4+ {[%clk 0:01:23.9]}
37... Kd6 {[%clk 0:00:24.9]} 38. Kd3 {[%clk 0:01:23.8]} 38... Na4 {[%clk
0:00:21.3]} 39. b3 {[%clk 0:01:23.4]} 39... Nb6 {[%clk 0:00:18.8]} 40. Ne2
{[%clk 0:01:17.6]} 40... Nd5 {[%clk 0:00:17]} 41. Nc3 {[%clk 0:01:17.3]} 41...
Ne7 {[%clk 0:00:15.7]} 42. Ke4 {[%clk 0:01:16.9]} 42... c6 {[%clk 0:00:13.9]}
43. h5 {[%clk 0:01:15.8]} 43... Ke6 {[%clk 0:00:12.9]} 44. f4 {[%clk 0:01:14.7]}
44... b5 {[%clk 0:00:11.6]} 45. g5 {[%clk 0:01:10.5]} 45... f5+ {[%clk
0:00:08.1]} 46. Kd3 {[%clk 0:01:08.4]} 46... Kd6 {[%clk 0:00:07.6]} 47. Ne2
{[%clk 0:01:05.9]} 47... Ke6 {[%clk 0:00:06.8]} 48. Ng3 {[%clk 0:01:02.8]} 48...
Nd5 {[%clk 0:00:06.2]} 49. Ne2 {[%clk 0:00:57]} 49... Kd6 {[%clk 0:00:05.4]} 50.
Kd2 {[%clk 0:00:46.3]} 50... Ke6 {[%clk 0:00:05.1]} 51. Ke1 {[%clk 0:00:46.1]}
51... Kd6 {[%clk 0:00:03.7]} 52. Kf2 {[%clk 0:00:46.2]} 52... Ke6 {[%clk
0:00:03.9]} 53. Kg3 {[%clk 0:00:46.6]} 53... Kf7 {[%clk 0:00:02.9]} 54. Kf3
{[%clk 0:00:44.6]} 54... Ke6 {[%clk 0:00:02.6]} 55. Nc1 {[%clk 0:00:44.4]} 55...
Kd6 {[%clk 0:00:02.2]} 56. Nd3 {[%clk 0:00:44.7]} 1-0